bitfinex/quotes_BTCUSD_20241123
["timestamp","ask_amount","ask_price","bid_price","bid_amount"]
[1732327747479,0.0489,97995.0,97970.0,0.04191812]
[1732327747687,0.0489,97995.0,97965.0,0.023]
[1732327748132,0.0489,97995.0,97964.0,0.0753]
[1732327748133,0.0489,97995.0,97964.0,0.0533]
[1732327748347,0.0768,97994.0,97961.0,0.23967091]
[1732327748599,0.0489,97993.0,97961.0,0.23967091]
[1732327748828,0.0489,97993.0,97962.0,0.00102058]
[1732327750187,0.0489,97993.0,97961.0,0.23967091]
[1732327751094,0.001721,98002.0,97961.0,0.19177091]
[1732327751095,0.0489,97991.0,97961.0,0.19177091]
[1732327751310,0.001721,98002.0,97961.0,0.19177091]
[1732327751311,0.0768,97990.0,97961.0,0.19177091]
[1732327751528,0.0489,97987.0,97961.0,0.19177091]
[1732327751750,0.0489,97987.0,97962.0,0.00102063]
[1732327751979,0.04395112,97987.0,97962.0,0.00102063]
[1732327752196,0.04395112,97987.0,97969.0,0.30752125]
[1732327752434,0.04395112,97987.0,97970.0,0.30752125]
[1732327753528,0.04395112,97987.0,97971.0,0.30752125]
[1732327754029,0.04395112,97987.0,97973.0,0.30752125]
[1732327754266,0.04395112,97987.0,97974.0,0.15]
[1732327754454,0.04395112,97987.0,97974.0,0.45752125]
[1732327754941,0.0768,97986.0,97974.0,0.45752125]
[1732327755146,0.001721,98002.0,97974.0,0.45752125]
[1732327755147,0.001721,98002.0,97974.0,0.45723406]
[1732327755368,0.0489,97996.0,97974.0,0.45723406]
[1732327755583,0.0489,97994.0,97975.0,0.30752125]
[1732327755804,0.0768,97993.0,97974.0,0.2623582]
[1732327756023,0.001721,98002.0,97971.0,0.2623582]
[1732327756239,0.0489,97987.0,97971.0,0.26168571]
[1732327756457,0.001721,98002.0,97960.0,0.50744988]
[1732327756458,0.0768,97986.0,97960.0,0.50744988]
[1732327756687,0.048795,97985.0,97960.0,0.50744988]
[1732327756875,0.048795,97985.0,97970.0,0.0008601]
[1732327759468,0.048795,97985.0,97970.0,0.04107027]
[1732327759708,0.02850756,97985.0,97970.0,0.0008601]
[1732327759942,0.02850756,97985.0,97961.0,0.10688075]
[1732327760430,0.02850756,97985.0,97961.0,0.14875587]
[1732327761307,0.02850756,97985.0,97971.0,0.30767442]
[1732327761766,0.02850756,97985.0,97973.0,0.30767442]
[1732327762009,0.02850756,97985.0,97974.0,0.15]
[1732327763403,0.0768,97986.0,97960.0,0.50744988]
[1732327763404,0.05937956,97986.0,97972.0,0.30767442]
[1732327763647,0.05937956,97986.0,97973.0,0.15]
[1732327763887,0.05937956,97986.0,97973.0,0.105]
[1732327764132,0.05937956,97986.0,97969.0,0.30767442]
[1732327764387,0.05937956,97986.0,97972.0,0.04178858]
[1732327764606,0.05937956,97986.0,97969.0,0.30767442]
[1732327764826,0.05937956,97986.0,97969.0,0.34955366]
[1732327765262,0.05937956,97986.0,97970.0,0.30767442]
[1732327765930,0.05937956,97986.0,97972.0,0.30767442]
[1732327766359,0.05937956,97986.0,97973.0,0.15]
[1732327767811,0.05937956,97986.0,97973.0,0.105]
[1732327768270,0.05937956,97986.0,97970.0,0.30767442]
[1732327769421,0.05937956,97986.0,97973.0,0.0008601]
[1732327769848,0.05937956,97986.0,97974.0,0.15]
[1732327771902,0.05937956,97986.0,97974.0,0.105]
[1732327772121,0.05937956,97986.0,97973.0,0.0008601]
[1732327772825,0.0553217,97986.0,97973.0,0.0008601]
[1732327773914,0.0553217,97986.0,97975.0,0.30767442]
[1732327774160,0.0553217,97986.0,97976.0,0.15]
[1732327775311,0.0553217,97986.0,97976.0,0.45767442]
[1732327775584,0.0553217,97986.0,97976.0,0.15]
[1732327775835,0.0553217,97986.0,97973.0,0.0008601]
[1732327777857,0.0553217,97986.0,97975.0,0.15]
[1732327779230,0.0553217,97986.0,97974.0,0.15]
[1732327779702,0.0553217,97986.0,97973.0,0.30852128]
[1732327779920,0.0553217,97986.0,97971.0,0.30415028]
[1732327780135,0.0553217,97986.0,97972.0,0.15]
[1732327780785,0.0553217,97986.0,97974.0,0.0008603]
[1732327781014,0.0570423,97986.0,97974.0,0.0008603]
[1732327782824,0.05342659,97986.0,97974.0,0.0008603]
[1732327783015,0.03110518,97986.0,97974.0,0.0008603]
[1732327783974,0.03110518,97986.0,97962.0,0.00102063]
[1732327784895,0.03110518,97986.0,97970.0,0.30776193]
[1732327785116,0.03110518,97986.0,97971.0,0.15]
[1732327785343,0.03110518,97986.0,97971.0,0.45776193]
[1732327785787,0.03110518,97986.0,97974.0,0.15]
[1732327786001,0.03110518,97986.0,97974.0,0.30776193]
[1732327786219,0.03110518,97986.0,97975.0,0.15]
[1732327786485,0.02519385,97986.0,97975.0,0.15]
[1732327788089,0.02519385,97986.0,97971.0,0.30776193]
[1732327788333,0.02519385,97986.0,97961.0,0.0477]
[1732327788334,0.02519385,97986.0,97972.0,0.30776193]
[1732327788551,0.02519385,97986.0,97972.0,0.3078789]
[1732327788780,0.001721,98002.0,97949.0,0.49368159]
[1732327788781,0.001721,98002.0,97978.0,0.1242]
[1732327789441,0.0778,98001.0,97978.0,0.4320789]
[1732327789630,0.0778,98001.0,97979.0,0.3078789]
[1732327789890,0.0778,98001.0,97978.0,0.1242]
[1732327789891,0.0778,98001.0,97978.0,0.4320789]
[1732327790109,0.0778,98001.0,97981.0,0.15]
[1732327790551,0.0778,98001.0,97981.0,0.4578789]
[1732327791727,0.0482,98000.0,97981.0,0.4578789]
[1732327791950,0.0482,98000.0,97979.0,0.3078789]
[1732327793137,0.0482,98000.0,97980.0,0.3078789]
[1732327793817,0.0482,98000.0,97979.0,0.15]
[1732327794033,0.0482,97998.0,97970.0,0.0472]
[1732327794259,0.0778,97997.0,97974.0,0.0008603]
[1732327794482,0.0482,97996.0,97974.0,0.0008603]
[1732327794754,0.0482,97994.0,97974.0,0.0008603]
[1732327795831,0.0482,97994.0,97965.0,0.04334177]
[1732327796048,0.0482,97992.0,97951.0,0.023]
[1732327796263,0.0778,97991.0,97951.0,0.023]
[1732327796481,0.001721,98002.0,97951.0,0.023]
[1732327796482,0.0778,97989.0,97951.0,0.023]
[1732327796738,0.0482,97987.0,97951.0,0.023]
[1732327797420,0.0799,97986.0,97951.0,0.023]
[1732327798747,0.0488,97985.0,97959.0,0.30800377]
[1732327799160,0.0488,97985.0,97959.0,0.3080038]
[1732327799836,0.0488,97985.0,97958.0,0.2630038]
[1732327800265,0.0488,97985.0,97956.0,0.046]
[1732327803090,0.0799,97984.0,97956.0,0.046]
[1732327803792,0.0799,97984.0,97956.0,0.001]
[1732327804013,0.0451,97983.0,97956.0,0.001]
[1732327804865,0.0451,97983.0,97956.0,0.30892727]
[1732327805525,0.04083453,97983.0,97956.0,0.001]
[1732327805985,0.04083453,97983.0,97968.0,0.30792727]
[1732327806470,0.04083453,97983.0,97956.0,0.001]
[1732327806471,0.04083453,97983.0,97967.0,0.30792727]
[1732327806688,0.04083453,97983.0,97968.0,0.15]
[1732327807575,0.04083453,97983.0,97956.0,0.0018605]
[1732327807795,0.04083453,97983.0,97954.0,0.0806]
[1732327807796,0.04083453,97983.0,97954.0,0.0374605]
[1732327808428,0.0799,97982.0,97954.0,0.0374605]
[1732327808648,0.0451,97981.0,97954.0,0.0374605]
[1732327808867,0.0451,97979.0,97951.0,0.023]
[1732327811585,0.0451,97979.0,97951.0,0.173]
[1732327811938,0.04199454,97979.0,97951.0,0.128]
[1732327812251,0.03182694,97979.0,97951.0,0.128]
[1732327813376,0.03182694,97979.0,97963.0,0.30785145]
[1732327813816,0.03182694,97979.0,97965.0,0.30785145]
[1732327814543,0.02096279,97979.0,97965.0,0.30785145]
[1732327814729,0.01647276,97979.0,97966.0,0.15]
[1732327814932,0.01269738,97979.0,97966.0,0.15]
[1732327815358,0.01269738,97979.0,97950.0,0.12105907]
[1732327815576,0.01269738,97979.0,97952.0,0.30784415]
[1732327816022,0.01269738,97979.0,97952.0,0.26284415]
[1732327816436,0.01269738,97979.0,97951.0,0.0138302]
[1732327816895,0.01269738,97979.0,97951.0,0.1638302]
[1732327818605,9.37e-05,97979.0,97951.0,0.1638302]
[1732327819253,0.07285239,97980.0,97951.0,0.1646908]
[1732327819705,0.0017212,97979.0,97951.0,0.1646908]
[1732327819920,0.0017212,97979.0,97951.0,0.1196908]
[1732327820838,0.1,98009.0,97952.0,0.004063]
[1732327821060,0.03317208,98008.0,97952.0,0.004063]
[1732327821278,0.023,98004.0,97952.0,0.004063]
[1732327822442,0.023,98002.0,97952.0,0.004063]
[1732327822661,0.1283,98004.0,97952.0,0.004063]
[1732327822866,0.0787,98001.0,97952.0,0.004063]
[1732327823102,0.1283,97999.0,97952.0,0.004063]
[1732327823313,0.1283,98000.0,97952.0,0.004063]
[1732327823557,0.0787,97998.0,97952.0,0.004063]
[1732327823778,0.1289,97992.0,97953.0,0.05174164]
[1732327824011,0.1289,97987.0,97953.0,0.05174164]
[1732327824232,0.1,98007.0,97953.0,0.05174164]
[1732327824233,0.07179814,97985.0,97954.0,0.00102066]
[1732327824672,0.06876343,97985.0,97954.0,0.00102066]
[1732327824879,0.06434691,97985.0,97954.0,0.00102066]
[1732327825551,1e-08,97986.0,97955.0,0.0494]
[1732327825812,0.1,98007.0,97955.0,0.0494]
[1732327826040,0.1,98007.0,97961.0,0.15]
[1732327826295,0.1,98007.0,97962.0,0.00102066]
[1732327826497,0.1,98007.0,97963.0,0.0494]
[1732327826700,0.1,98007.0,97964.0,0.00102066]
[1732327826943,0.11138929,98007.0,97964.0,0.00102066]
[1732327827193,0.1017208,98010.0,97964.0,0.07752066]
[1732327827430,0.1017208,98010.0,97965.0,0.0494]
[1732327827638,0.1017208,98010.0,97967.0,0.0494]
[1732327827855,0.1017208,98010.0,97967.0,0.05042064]
[1732327828073,0.1017208,98010.0,97967.0,0.00542064]
[1732327828074,0.0489,98009.0,97967.0,0.00542064]
[1732327828555,0.0489,98007.0,97968.0,0.07752064]
[1732327831010,0.0489,98007.0,97969.0,0.0494]
[1732327831232,0.0489,98007.0,97970.0,0.12692055]
[1732327831437,0.0489,98007.0,97972.0,0.0494]
[1732327831643,0.0489,98007.0,97973.0,0.05042055]
[1732327831852,0.00102058,98006.0,97973.0,0.00542055]
[1732327832065,0.00102058,98006.0,97974.0,0.00102055]
[1732327832289,0.0489,98005.0,97975.0,0.0765]
[1732327832499,0.0489,98003.0,97975.0,0.0765]
[1732327832721,0.00102058,98002.0,97975.0,0.0765]
[1732327834536,0.0423801,98003.0,97975.0,0.0765]
[1732327834768,0.03795258,98003.0,97975.0,0.0765]
[1732327835929,0.03795258,98003.0,97975.0,0.0315]
[1732327836137,0.03795258,98003.0,97975.0,0.07218689]
[1732327836360,0.03795258,98003.0,97975.0,0.0315]
[1732327838506,0.02822765,98003.0,97975.0,0.0315]
[1732327839357,0.02150323,98003.0,97975.0,0.0315]
[1732327839777,0.01174198,98003.0,97973.0,0.04199738]
[1732327839982,0.01174198,98003.0,97961.0,0.15]
[1732327840623,0.01163993,98003.0,97962.0,0.0471]
[1732327840839,0.0803,98002.0,97962.0,0.0471]
[1732327842856,0.0803,98002.0,97961.0,0.19155717]
[1732327842857,0.0803,98002.0,97963.0,0.0783]
[1732327843069,0.0803,98002.0,97964.0,0.0471]
[1732327843774,0.0803,98002.0,97964.0,0.0021]
[1732327843983,0.0496,98001.0,97964.0,0.0021]
[1732327844409,0.01887001,98001.0,97964.0,0.0021]
[1732327844625,0.06941001,98002.0,97967.0,0.0471]
[1732327844879,0.06941001,98002.0,97969.0,0.0471]
[1732327845728,0.03850001,98002.0,97971.0,0.0783]
[1732327845932,0.03850001,98002.0,97972.0,0.0471]
[1732327846861,0.02848247,98002.0,97972.0,0.0471]
[1732327847543,0.04499988,98001.0,97972.0,0.0471]
[1732327847971,0.00920024,98001.0,97972.0,0.0021]
[1732327848631,0.00595969,98001.0,97972.0,0.0021]
[1732327849084,0.00595969,98001.0,97972.0,0.04317501]
[1732327849524,0.00595969,98001.0,97972.0,0.0021]
[1732327852013,0.00595969,98001.0,97971.0,0.07747181]
[1732327854896,0.00595969,98001.0,97972.0,0.0465]
[1732327855777,0.00595969,98001.0,97972.0,0.0015]
[1732327856717,0.0017208,98010.0,97972.0,0.0015]
[1732327857660,0.0017202,98002.0,97972.0,0.0015]
[1732327859730,0.0822,98001.0,97972.0,0.0015]
[1732327859954,0.045,98000.0,97971.0,0.03397181]
[1732327860165,0.045,98000.0,97969.0,0.0008601]
[1732327860442,0.045,98000.0,97969.0,0.04262975]
[1732327860683,0.06676053,98001.0,97970.0,0.1289]
[1732327860881,0.06676053,98001.0,97971.0,0.15]
[1732327863824,0.0822,97999.0,97970.0,0.1289]
[1732327864038,0.045,97998.0,97970.0,0.1289]
[1732327864267,0.0822,97997.0,97970.0,0.1289]
[1732327864729,0.045,97996.0,97970.0,0.0471]
[1732327864963,0.0822,97995.0,97970.0,0.0471]
[1732327865593,0.045,97994.0,97970.0,0.0471]
[1732327866015,0.0822,97993.0,97970.0,0.0471]
[1732327866455,1e-08,97993.0,97970.0,0.0471]
[1732327867906,0.045,97992.0,97970.0,0.0021]
[1732327868371,0.0017202,98002.0,97970.0,0.0021]
[1732327870964,0.0017202,98001.0,97970.0,0.0021]
[1732327871178,0.1272,98000.0,97970.0,0.0021]
[1732327874264,0.1067,98044.0,97970.0,0.0021]
[1732327874485,0.023,98010.0,97972.0,0.15]
[1732327874703,0.023,98010.0,97973.0,0.0471]
[1732327877255,0.023,98010.0,97975.0,0.1957]
[1732327877480,0.0907,98009.0,97976.0,0.0457]
[1732327879490,0.0907,98009.0,97978.0,0.0457]
[1732327879716,0.0907,98009.0,97978.0,0.1957]
[1732327880157,0.0907,98009.0,97979.0,0.0457]
[1732327882366,0.0907,98009.0,97980.0,0.0806]
[1732327882584,0.0907,98009.0,97982.0,0.0457]
[1732327884437,0.0907,98009.0,97983.0,0.2306]
[1732327884689,0.0683,98009.0,97985.0,0.0457]
[1732327886660,0.0017202,98010.0,97986.0,0.0806]
[1732327886888,0.0017202,98010.0,97987.0,0.1957]
[1732327887108,0.0017202,98010.0,97988.0,0.0457]
[1732327896650,0.0017202,98010.0,97988.0,0.0465602]
[1732327897301,0.0907,98009.0,97988.0,0.0008602]
[1732327897801,0.1907,98001.0,97988.0,0.0008602]
[1732327898007,0.023,98000.0,97988.0,0.0008602]
[1732327898238,0.0224,97999.0,97988.0,0.0008602]
[1732327899556,0.023,97998.0,97988.0,0.0008602]
[1732327901243,0.023,97996.0,97988.0,0.0008602]
[1732327904232,0.1,97990.0,97988.0,0.0008602]
[1732327904424,0.023,97989.0,97988.0,0.0008602]
[1732327906436,0.123,97989.0,97988.0,0.0008602]
[1732327908220,0.2137,97989.0,97988.0,0.0008602]
[1732327917378,0.123,97989.0,97988.0,0.0008602]
[1732327921606,0.023,97989.0,97988.0,0.0008602]
[1732327922037,0.023,97992.0,97988.0,0.0008602]
[1732327922281,0.1,98001.0,97990.0,0.15]
[1732327922514,0.0017204,98002.0,97991.0,0.00191808]
[1732327922736,0.0017204,98002.0,97991.0,0.05001808]
[1732327923887,0.0017204,98002.0,97992.0,0.0804]
[1732327924092,0.0017204,98002.0,97993.0,0.05001079]
[1732327924325,0.001582,98000.0,97993.0,0.05001079]
[1732327924779,0.001582,98000.0,97993.0,0.20001079]
[1732327924991,0.023,97999.0,97992.0,0.02843648]
[1732327925411,0.021418,97999.0,97992.0,0.02843648]
[1732327925859,0.001582,98000.0,97992.0,0.02843648]
[1732327928096,0.001582,98000.0,97993.0,0.0481]
[1732327935809,0.001582,98000.0,97993.0,0.0031]
[1732327939927,0.001582,98000.0,97985.0,0.05139646]
[1732327941983,0.048682,98000.0,97985.0,0.05139646]
[1732327943059,0.048682,98000.0,97985.0,0.02992792]
[1732327943283,0.048682,98000.0,97985.0,0.17992792]
[1732327943502,0.048682,98000.0,97985.0,0.15]
[1732327943922,0.048682,98000.0,97985.0,0.105]
[1732327944588,0.048682,98000.0,97984.0,0.04079233]
[1732327945027,0.048682,98000.0,97978.0,0.0831]
[1732327945256,0.0791,97999.0,97978.0,0.0831]
[1732327946872,0.1,97997.0,97972.0,0.01034784]
[1732327947076,0.0471,97996.0,97978.0,0.04218596]
[1732327947314,0.08234526,97996.0,97970.0,0.0831]
[1732327947552,0.1,97993.0,97978.0,0.0008603]
[1732327947767,0.0471,97992.0,97978.0,0.0008603]
[1732327947968,0.0471,97992.0,97970.0,0.0608204]
[1732327948173,0.0791,97991.0,97970.0,0.0608204]
[1732327948526,0.0791,97991.0,97969.0,0.0008601]
[1732327949369,0.0791,97991.0,97969.0,0.04205674]
[1732327949592,0.07541956,97991.0,97969.0,0.0008601]
[1732327951102,0.07541956,97991.0,97969.0,0.04245659]
[1732327951252,0.07541956,97991.0,97969.0,0.0008601]
[1732327951864,0.07541956,97991.0,97968.0,0.0018601]
[1732327952871,0.07541956,97991.0,97968.0,0.04224056]
[1732327953077,0.07541956,97991.0,97968.0,0.0018601]
[1732327954069,0.07521322,97991.0,97968.0,0.0018601]
[1732327955644,0.0471,97990.0,97964.0,0.0831]
[1732327955858,0.0471,97990.0,97964.0,0.0381]
[1732327956082,0.0471,97990.0,97965.0,0.046]
[1732327959008,0.0471,97990.0,97966.0,0.2303]
[1732327959909,0.0471,97990.0,97966.0,0.1853]
[1732327960341,0.0788,97989.0,97966.0,0.0353]
[1732327960833,0.0788,97987.0,97965.0,0.0008605]
[1732327961036,0.046,97986.0,97965.0,0.0008605]
[1732327963956,0.046,97986.0,97957.0,0.14794527]
[1732327964167,0.082,97985.0,97957.0,0.18868252]
[1732327964381,0.047,97984.0,97957.0,0.18868252]
[1732327964825,0.047,97982.0,97957.0,0.18868252]
[1732327965269,0.047,97982.0,97957.0,0.04073725]
[1732327965474,0.1,97989.0,97957.0,0.04073725]
[1732327965475,0.129,97981.0,97957.0,0.04073725]
[1732327965680,0.047,97980.0,97950.0,0.1277]
[1732327965896,0.047,97980.0,97951.0,0.1508606]
[1732327966127,0.047,97978.0,97951.0,0.0008606]
[1732327966354,0.082,97977.0,97951.0,0.0008606]
[1732327966574,0.047,97976.0,97951.0,0.0008606]
[1732327967005,0.047,97976.0,97951.0,0.04117804]
[1732327967231,0.047,97976.0,97951.0,0.0008606]
[1732327967686,0.082,97975.0,97951.0,0.0008606]
[1732327967913,0.047,97974.0,97945.0,0.1067212]
[1732327968134,0.047,97972.0,97945.0,0.1067212]
[1732327968654,0.047,97970.0,97944.0,0.0823]
[1732327969105,0.04366063,97970.0,97944.0,0.12298434]
[1732327970036,0.04366063,97970.0,97945.0,0.15]
[1732327970501,0.001721,97991.0,97944.0,0.12298434]
[1732327970502,0.082,97968.0,97944.0,0.04068434]
[1732327970989,0.082,97968.0,97937.0,0.02180891]
[1732327971197,0.1002,97968.0,97937.0,0.02180891]
[1732327971635,0.082,97967.0,97937.0,0.02180891]
[1732327971861,0.082,97967.0,97930.0,0.0823]
[1732327972070,0.1,97968.0,97930.0,0.0823]
[1732327972071,0.082,97965.0,97930.0,0.0823]
[1732327972289,0.047,97964.0,97930.0,0.12325667]
[1732327972536,0.047,97962.0,97944.0,0.0008607]
[1732327972951,0.047,97960.0,97944.0,0.0008607]
[1732327974497,0.047,97960.0,97928.0,0.00654844]
[1732327974741,0.047,97960.0,97928.0,0.04136896]
[1732327974977,0.047,97958.0,97928.0,0.04136896]
[1732327975209,0.1,97964.0,97927.0,0.0823]
[1732327975210,0.047,97956.0,97927.0,0.0823]
[1732327975426,0.082,97955.0,97927.0,0.0823]
[1732327975639,0.047,97954.0,97927.0,0.12364423]
[1732327975885,0.047,97954.0,97927.0,0.07864423]
[1732327976086,0.082,97953.0,97927.0,0.04134423]
[1732327976602,0.082,97953.0,97925.0,0.0454]
[1732327977071,0.082,97953.0,97925.0,0.08708907]
[1732327977748,0.0783,97951.0,97925.0,0.08708907]
[1732327978899,0.07569203,97951.0,97925.0,0.08708907]
[1732327980078,0.07569203,97951.0,97925.0,0.05408906]
[1732327980525,0.0451,97950.0,97925.0,0.04168907]
[1732327980986,0.0451,97950.0,97924.0,0.15]
[1732327981242,0.0451,97950.0,97924.0,0.19071178]
[1732327984017,0.0451,97950.0,97924.0,0.14571178]
[1732327984695,0.07569203,97951.0,97924.0,0.14571178]
[1732327984942,0.07569203,97951.0,97924.0,0.14657248]
[1732327987735,0.0451,97950.0,97924.0,0.14657248]
[1732327987963,0.0451,97950.0,97924.0,0.10157248]
[1732327989791,0.0451,97950.0,97924.0,0.04157248]
[1732327990251,0.0451,97950.0,97924.0,0.19157248]
[1732327991788,0.0783,97949.0,97924.0,0.19157248]
[1732327991998,0.0451,97948.0,97919.0,0.15]
[1732327992211,0.0451,97948.0,97921.0,0.0121982]
[1732327992661,0.0783,97947.0,97921.0,0.0121982]
[1732327992875,0.0451,97946.0,97921.0,0.0121982]
[1732327993964,0.0451,97946.0,97921.0,0.05251503]
[1732327994188,0.0451,97946.0,97921.0,0.0121982]
[1732327995925,0.0451,97946.0,97919.0,0.18587169]
[1732327997536,0.05809215,97947.0,97919.0,0.18587169]
[1732327997961,0.04666746,97947.0,97919.0,0.18587169]
[1732327998655,0.04386347,97947.0,97919.0,0.18587169]
[1732327999971,0.04386347,97947.0,97919.0,0.14087169]
[1732328000200,0.03825231,97947.0,97919.0,0.14087169]
[1732328000373,0.0484,97946.0,97919.0,0.14087169]
[1732328001975,0.023,97945.0,97919.0,0.14087169]
[1732328003572,0.03387,97946.0,97919.0,0.14087169]
[1732328004026,0.03387,97946.0,97919.0,0.09587169]
[1732328005180,0.03668231,97947.0,97919.0,0.0416735]
[1732328005638,0.023,97946.0,97918.0,0.1291]
[1732328006067,0.023,97946.0,97919.0,0.15]
[1732328007879,0.023,97946.0,97919.0,0.105]
[1732328008127,0.0484,97945.0,97919.0,0.105]
[1732328009778,0.0484,97945.0,97920.0,0.0467]
[1732328011926,0.0484,97945.0,97920.0,0.01669999]
[1732328012399,0.01288,97945.0,97920.0,0.01669999]
[1732328014542,0.1,97975.0,97925.0,0.0467]
[1732328014807,0.1,97975.0,97928.0,0.0467]
[1732328015019,0.1,97975.0,97919.0,0.1058607]
[1732328015020,0.1,97976.0,97931.0,0.0467]
[1732328015254,0.1,97978.0,97932.0,0.04772101]
[1732328015980,0.1,97978.0,97931.0,0.15]
[1732328015981,0.0484,97976.0,97931.0,0.15]
[1732328016215,0.1,97978.0,97931.0,0.15]
[1732328016216,0.0484,97974.0,97932.0,0.00102101]
[1732328016460,0.0484,97972.0,97932.0,0.00102101]
[1732328016670,0.0484,97970.0,97932.0,0.00102101]
[1732328016908,0.02402101,97969.0,97931.0,0.00102101]
[1732328017144,0.023,97967.0,97931.0,0.00102101]
[1732328017371,0.00102101,97966.0,97931.0,0.00102101]
[1732328017591,0.0765,97965.0,97931.0,0.00102101]
[1732328017806,0.00102101,97964.0,97932.0,0.0818]
[1732328018951,0.00102101,97964.0,97933.0,0.1988]
[1732328019412,0.0467,97963.0,97933.0,0.1988]
[1732328019645,0.00102101,97962.0,97933.0,0.1988]
[1732328019917,0.00102101,97962.0,97933.0,0.1538]
[1732328020163,0.0467,97961.0,97933.0,0.0038]
[1732328020396,0.00102101,97960.0,97933.0,0.0038]
[1732328020636,0.0467,97958.0,97932.0,0.0818]
[1732328020868,0.0765,97954.0,97924.0,0.12239007]
[1732328021157,0.04772101,97953.0,97924.0,0.12239007]
[1732328022133,0.04772101,97953.0,97925.0,0.15]
[1732328024103,0.04772101,97953.0,97925.0,0.105]
[1732328025539,0.04772101,97953.0,97926.0,0.00102111]
[1732328025772,0.04772101,97953.0,97926.0,0.13162111]
[1732328026011,0.04772101,97953.0,97927.0,0.15]
[1732328026457,0.04772101,97953.0,97928.0,0.00102103]
[1732328027869,0.00127629,97952.0,97927.0,0.10602103]
[1732328028586,0.00127629,97952.0,97926.0,0.0818]
[1732328028587,0.0467,97951.0,97926.0,0.0818]
[1732328028849,0.0467,97949.0,97926.0,0.0818]
[1732328029098,0.0467,97949.0,97924.0,0.04059007]
[1732328029099,0.00127639,97948.0,97924.0,0.04059007]
[1732328029333,0.00127639,97949.0,97924.0,0.04059007]
[1732328029570,0.00127639,97949.0,97921.0,0.0818]
[1732328031988,0.0467,97948.0,97921.0,0.0368]
[1732328032224,0.0467,97945.0,97920.0,0.0008607]
[1732328032461,0.00127641,97944.0,97921.0,0.04214989]
[1732328032736,0.1232,97943.0,97920.0,0.0008607]
[1732328032967,0.1232,97941.0,97920.0,0.04256508]
[1732328033210,0.1,97958.0,97920.0,0.04256508]
[1732328033211,0.0479765,97940.0,97920.0,0.04256508]
[1732328033455,0.0467,97938.0,97920.0,0.0008607]
[1732328033699,0.0012765,97937.0,97920.0,0.0008607]
[1732328034183,0.03568019,97938.0,97920.0,0.0008607]
[1732328034402,0.00076554,97937.0,97920.0,0.0008607]
[1732328036036,0.0012765,97937.0,97910.0,0.14983886]
[1732328036277,0.03568019,97938.0,97910.0,0.14983886]
[1732328036278,0.0012765,97936.0,97911.0,0.00076626]
[1732328036567,0.0012765,97937.0,97911.0,0.00076626]
[1732328036758,0.0012765,97937.0,97912.0,0.0452]
[1732328036978,0.0012765,97937.0,97910.0,0.04037611]
[1732328037229,0.0797,97936.0,97909.0,0.0757]
[1732328037443,0.05087659,97935.0,97908.0,0.0008608]
[1732328038385,0.05087659,97935.0,97908.0,0.04252993]
[1732328038835,0.05087659,97935.0,97908.0,0.0008608]
[1732328039313,0.05087659,97935.0,97909.0,0.03177175]
[1732328039962,0.05087659,97935.0,97905.0,0.03455275]
[1732328040657,0.05087659,97935.0,97905.0,0.0756239]
[1732328040872,0.0797,97936.0,97905.0,0.03455275]
[1732328042034,0.0797,97936.0,97906.0,0.00102127]
[1732328042255,0.0797,97936.0,97905.0,0.03455275]
[1732328043869,0.0496,97935.0,97905.0,0.03455275]
[1732328044107,0.0496,97935.0,97904.0,0.1810528]
[1732328047141,0.0496,97935.0,97905.0,0.0495]
[1732328047835,0.0797,97936.0,97904.0,0.1819132]
[1732328047836,0.0496,97933.0,97904.0,0.1819132]
[1732328048061,0.0017208,97936.0,97904.0,0.1819132]
[1732328048302,0.0496,97929.0,97904.0,0.1819132]
[1732328048745,0.0496,97929.0,97904.0,0.04236045]
[1732328051065,0.0496,97929.0,97904.0,0.19236045]
[1732328052064,0.0496,97927.0,97900.0,0.0495]
[1732328052674,0.0496,97925.0,97900.0,0.0495]
[1732328052938,0.0752,97924.0,97900.0,0.04024502]
[1732328053168,0.0496,97923.0,97900.0,0.04024502]
[1732328053420,0.0496,97923.0,97898.0,0.0008607]
[1732328054338,0.0752,97922.0,97898.0,0.0008607]
[1732328054574,0.0496,97921.0,97898.0,0.0008607]
[1732328055538,0.0752,97920.0,97898.0,0.04142333]
[1732328055767,0.023,97917.0,97898.0,0.0008607]
[1732328055994,0.1248,97913.0,97895.0,0.04188099]
[1732328056227,0.1248,97910.0,97895.0,0.04188099]
[1732328056469,0.0982,97907.0,97880.0,0.004067]
[1732328056696,0.1248,97904.0,97853.0,0.002]
[1732328056902,0.1248,97899.0,97853.0,0.002]
[1732328057172,0.0752,97898.0,97853.0,0.002]
[1732328057422,0.023,97907.0,97853.0,0.002]
[1732328057423,0.0451,97894.0,97853.0,0.002]
[1732328057646,0.0778,97893.0,97853.0,0.002]
[1732328059256,0.0451,97892.0,97848.0,0.15]
[1732328059487,0.0778,97891.0,97849.0,0.05260915]
[1732328059743,0.0778,97891.0,97858.0,0.002]
[1732328059965,0.0778,97891.0,97852.0,0.15]
[1732328059966,0.00127717,97890.0,97852.0,0.10802173]
[1732328060207,0.00127717,97890.0,97853.0,0.00102173]
[1732328060916,0.0778,97891.0,97850.0,0.1214]
[1732328060917,0.04312234,97891.0,97851.0,0.00102173]
[1732328061160,0.04312234,97891.0,97853.0,0.000861]
[1732328061400,0.04312234,97891.0,97854.0,0.00102173]
[1732328062844,0.001722,97898.0,97853.0,0.000861]
[1732328062845,0.0451,97890.0,97853.0,0.000861]
[1732328063776,0.0778,97889.0,97853.0,0.000861]
[1732328063993,0.0778,97889.0,97843.0,0.05152528]
[1732328066308,0.0778,97889.0,97842.0,0.05157584]
[1732328067435,0.0778,97889.0,97842.0,0.09339468]
[1732328067706,0.0478,97889.0,97842.0,0.09339468]
[1732328068129,0.0478,97889.0,97843.0,0.05117208]
[1732328068588,0.0428,97889.0,97844.0,0.00102173]
[1732328068836,0.0428,97889.0,97845.0,0.0453]
[1732328069041,0.0428,97889.0,97846.0,0.05132565]
[1732328069488,0.0428,97889.0,97846.0,0.20795085]